[Event "GCT Superbet Rapid Poland 2025"]
[Site "Warsaw"]
[Date "2025.04.28"]
[Round "8.3"]
[White "Gavrilescu, David"]
[Black "Praggnanandhaa R"]
[Result "0-1"]
[ECO "B27"]
[WhiteElo "2554"]
[BlackElo "2758"]
[Annotator "RC"]
[PlyCount "50"]
[EventDate "2025.??.??"]
[EventType "rapid"]
[TimeControl "1500+10"]

{[%evp 12,50,36,36,59,51,49,11,29,6,10,8,9,-2,-2,-3,-3,-19,-17,-26,-23,-25,-19,-24,-24,-32,-39,-51,-15,-42,-30,-144,-123,-294,-245,-227,-236,-690,-687,-619,-506]} 1. e4 {[%emt 0:00:07]} c5 {[%emt 0:00:01]} 2. Nf3 {[%emt 0:00:13]} g6 {[%emt 0:00:02]} 3. d4 {[%emt 0:00:54]} cxd4 {[%emt 0:00:01]} 4. Qxd4 {[%emt 0:00:06]} Nf6 {[%emt 0:00:02]} 5. Nc3 {[%emt 0:00:09]} Nc6 {[%emt 0:00:06]} 6. Qa4 {[%emt 0:00:17]} d6 {[%emt 0:00:02]} 7. e5 {[%emt 0:00:14]} Ng4 {[%emt 0:00:02]} 8. exd6 {[%emt 0:08:01]} Qxd6 {[%emt 0:00:02]} 9. h3 {[%emt 0:01:14]} Nge5 {[%emt 0:02:08] The position is equal.} 10. Nxe5 {[%emt 0:01:00]} Qxe5+ {[%emt 0:00:04]} 11. Be2 {[%emt 0:00:33] Hoping for Bf4.} Bg7 {[%emt 0:00:22]} 12. Bf4 {[%emt 0:00:36]} Qc5 $146 {[%emt 0:01:05]} ({RR} 12... Qd4 13. Bb5 Qxa4 14. Nxa4 O-O 15. Bxc6 bxc6 16. O-O-O Bf5 17. Rhe1 Rfe8 18. g4 Bc8 19. Be5 Bh6+ 20. Kb1 f6 21. Bxf6 {[#]} Kf7 $2 {[%eval 318,24] [%wdl 1000,0,0][%mdl 8192]} (21... Bxg4 $1 $11 {[%eval -23,27] [%wdl 1,988,11]} 22. hxg4 exf6) 22. Bc3 Be6 23. Bd2 Bg7 24. Re4 Rab8 25. c4 h5 26. b3 Rbd8 27. Kc2 {Shyam,N (2453)-Rottenwohrer Suarez,J (2230) Chess.com INT 2021 1-0 (79)}) ({RR} 12... Qd4 13. Bb5 Qxa4 14. Bxa4 {And now Nd5 would win.} O-O 15. O-O-O Bxc3 16. bxc3 Be6 17. Bb3 Na5 18. Bxe6 fxe6 19. Be3 Rac8 20. Bxa7 (20. Rd7 $5 {[%cal Rd7e7]}) 20... Rxc3 21. Bd4 Rc6 22. Rhe1 Nc4 23. Re2 Ra8 24. Kb1 Na3+ 25. Kb2 Ra5 26. Rd3 Nc4+ 27. Kb1 {Sedina,E (2394)-Wirthensohn,H (2401) Switzerland 2006 ½-½}) 13. O-O {[%emt 0:00:30]} O-O {[%emt 0:00:15]} 14. Be3 {[%emt 0:00:52]} Bd4 {[%emt 0:08:13]} 15. Bxd4 {[%emt 0:01:15]} Nxd4 {[%emt 0:00:03]} 16. Bd3 {[%emt 0:00:31]} Rd8 {[%emt 0:00:56]} 17. Ne4 {[%emt 0:01:53]} Qc7 {[%emt 0:00:58]} 18. Rad1 {[%emt 0:00:48]} Bf5 {[%emt 0:02:03]} 19. Nc3 {[%emt 0:01:42]} Be6 {[%emt 0:03:55]} 20. Nb5 {[%emt 0:03:02]} Qc5 {[%emt 0:01:04]} 21. c3 {[%emt 0:00:54][%cal Rb5d4]} Nf3+ {[%emt 0:02:44]} 22. Kh1 $2 {[%eval -294,24] [%wdl 0,0,1000] [%emt 0:02:45] [#]} (22. gxf3 $17 {[%eval -123,27] [%wdl 0,238,762] was the only defense.} Bxh3 23. Qf4 (23. f4 $2 Qh5 $19) 23... Bxf1 24. Kxf1) 22... Qe5 $1 {[%emt 0:01:54][%csl Gf3][%cal Re5h2]} 23. gxf3 {[%emt 0:00:47] Qh4 is the strong threat.} Bxh3 {[%emt 0:00:03]} 24. Nd4 $2 {[%eval -690,22] [%wdl 0,0,1000] [%emt 0:00:34]} (24. Rfe1 {[%eval -236,26] [%wdl 0,1,999]} Qh5 25. Be2 Bf1+ 26. Kg1 Bxe2 27. Rxe2 (27. Rxd8+ $2 Rxd8 28. Rxe2 Rd5 $17) 27... Rxd1+ 28. Qxd1 Qxb5 29. Qd2) 24... Qh5 $19 {[%emt 0:00:05] Strongly threatening ...Rxd4.} ({Inferior is} 24... Bxf1 25. Bxf1 Qf4 26. Qb3 $17) 25. Qb5 {[%emt 0:00:12] aiming for Qxh5.} Rd5 {[%emt 0:00:05] Weighted Error Value: White=0.49/Black=0.07 (flawless)} 0-1

[Event "GCT Superbet Rapid Poland 2025"]
[Site "Warsaw"]
[Date "2025.04.28"]
[Round "8.4"]
[White "Firouzja, Alireza"]
[Black "Topalov, Veselin"]
[Result "1-0"]
[ECO "C55"]
[WhiteElo "2757"]
[BlackElo "2717"]
[Annotator "TA"]
[PlyCount "39"]
[EventDate "2025.??.??"]
[EventType "rapid"]
[TimeControl "1500+10"]

{[%evp 9,39,26,28,31,43,43,41,41,37,20,26,30,47,34,52,41,64,45,152,164,164,140,174,160,154,157,518,506,510,456,545,542]} 1. e4 {[%emt 0:00:01]} e5 {[%emt 0:00:06]} 2. Nf3 {[%emt 0:00:02]} Nc6 {[%emt 0:00:01]} 3. Bc4 {[%emt 0:00:06]} Nf6 {[%emt 0:00:03]} 4. d3 {[%emt 0:00:01]} h6 {[%emt 0:00:02]} 5. c3 {[%emt 0:00:08]} g5 {[%emt 0:00:30]} 6. d4 {[%emt 0:00:53] C55: Two Knights: 4 d3, 4 d4 exd4 5 e5 and Max Lange Attack.} exd4 {[%emt 0:00:22]} ({RR} 6... d6 7. dxe5 dxe5 8. Qxd8+ Nxd8 9. Nxe5 Nxe4 10. O-O Be6 11. Re1 Nd6 12. Bd3 Bg7 13. f4 gxf4 14. Bxf4 O-O 15. Nd2 Bd5 16. Nd7 Re8 17. Bxd6 Rxe1+ 18. Rxe1 cxd6 19. Re8+ {1-0 (19) Fiorito,J (2411)-Marchesich,G (2220) chess.com INT 2025}) 7. e5 {[%emt 0:01:09]} d5 {[%emt 0:01:25]} 8. Bb5 {[%emt 0:01:10][%cal Of3d4] White is slightly better.} Ne4 {[%emt 0:00:15]} 9. O-O $146 {[%emt 0:03:48]} (9. Nxd4 Bd7 10. O-O Nxe5 11. f3 Nd6 12. Re1 f6 13. Bd3 Qe7 14. Bg6+ Ndf7 15. Nf5 Bxf5 16. Bxf5 {0-1 Donchenko,A (2658)-Ponkratov,P (2628) Speed Chess Super Swiss blitz 2020 (12)}) ({RR} 9. Nxd4 Bd7 10. e6 fxe6 11. Bxc6 Bxc6 12. f3 Nf6 13. Qe2 Qe7 14. Nxe6 Kf7 15. Nxf8 Qxe2+ 16. Kxe2 Re8+ 17. Kf2 Rhxf8 18. Be3 Kg6 19. Bd4 Bb5 20. Na3 Re2+ 21. Kg1 Bd3 22. Rd1 Ne4 23. h3 Nd2 {Hercegovac,N (2224)-Liloni,F (1951) Palmanova ITA 2022 0-1 (45)}) ({RR} 9. Nxd4 Bd7 10. e6 fxe6 11. Qh5+ Ke7 12. Bxc6 bxc6 13. f3 Nf6 14. Bxg5 Bg7 15. Bh4 c5 16. Ne2 Be8 17. Qe5 Qd6 18. Qe3 Kf7 19. Bg3 Qb6 20. Nf4 Qxb2 21. Qxe6+ Kf8 22. O-O Qxa1 23. Nxd5 Nxd5 {Isgandarova,K (2124)-Mahmutbegovic,N (1973) Budapest HUN 2024 1-0 (36)}) ({RR} 9. Nxd4 Bd7 10. Bxc6 bxc6 11. O-O Bg7 12. f3 Nc5 13. f4 Qe7 14. Be3 gxf4 15. Bxf4 Bxe5 16. Bxe5 Qxe5 17. Qf3 O-O-O 18. Nd2 Qg5 19. b4 Ne6 20. N2b3 Rhg8 21. Rf2 Rde8 22. Nxe6 fxe6 23. Nc5 e5 {Brkic,A (2606)-Hamiti,G (2124) Durres ALB 2023 1-0 (47)}) 9... d3 {[%emt 0:08:40]} 10. Qxd3 {[%emt 0:03:50]} Nc5 {[%emt 0:00:57]} 11. Qc2 {[%emt 0:00:39]} Bg7 {[%emt 0:00:49]} 12. Be3 {[%emt 0:02:33] White has a king side majority} Ne6 {[%emt 0:00:15]} 13. c4 {[%emt 0:00:55] Threatens to win with cxd5.} dxc4 {[%emt 0:02:17]} (13... O-O $14) 14. Rd1 $1 $16 {[%emt 0:00:27] White sacrificed a pawn} ({Reject} 14. Bxc4 $6 g4 15. Rd1 Qe7 16. Bxe6 gxf3 17. Bxc8 Rxc8 $14) (14. Qxc4 $6 Bd7 $14) 14... Bd7 {[%emt 0:01:10] A sharp opening} 15. Nc3 {[%emt 0:00:46][%cal Bb1c3,Bc3e4,Be4g5][%mdl 32]} (15. Qxc4 $6 Qe7 $16) (15. Bxc4 $6 O-O $14) 15... O-O {[%emt 0:02:01] [#]} 16. Bxc6 $1 {[%emt 0:00:07]} ({Don't play} 16. Bxc4 $6 g4 17. Bxe6 fxe6 $14) 16... bxc6 {[%emt 0:00:02] [#]} 17. Ne4 $1 {[%emt 0:00:01] White has more active pieces.} g4 $2 {[%emt 0:00:45] [#]} (17... Rb8 $16 18. h4 (18. Qxc4 Rxb2 19. Qd3 g4 $18) (18. Bxa7 Rb5 $16) 18... g4) 18. Bxh6 $1 $18 {[%emt 0:01:10][%mdl 512] White is clearly winning.} f5 {[%emt 0:01:44][%cal Of5e4] [#]} (18... gxf3 19. Bxg7) 19. exf6 $1 {[%emt 0:00:43]} Bxh6 {[%emt 0:00:16] [#]} (19... gxf3 20. Bxg7) 20. Neg5 $1 {[%emt 0:00:03] Weighted Error Value: White=0.05 (flawless) /Black=0.54 Loses game: 	--- 	Black=1 Mistake: 	--- 	Black=1 OK: 	White=8 	Black=2 Strong: 	White=2 	---} 1-0

[Event "GCT Superbet Rapid Poland 2025"]
[Site "Warsaw"]
[Date "2025.04.28"]
[Round "8.5"]
[White "Duda, Jan-Krzysztof"]
[Black "Deac, Bogdan-Daniel"]
[Result "1-0"]
[ECO "A01"]
[WhiteElo "2739"]
[BlackElo "2668"]
[Annotator "TA"]
[PlyCount "75"]
[EventDate "2025.??.??"]
[EventType "rapid"]
[TimeControl "1500+10"]

{[%evp 12,75,0,-12,0,-1,-10,-11,-8,-17,7,-8,27,16,0,0,28,7,16,19,16,-32,28,0,21,11,20,17,28,22,20,10,6,0,0,0,0,0,67,67,327,240,236,67,62,4,0,0,42,44,128,128,132,147,137,127,256,252,1068,1066,1048,1039,1106,489,1143,1135]} 1. b3 {[%emt 0:00:01]} e5 {[%emt 0:00:15]} 2. Bb2 {[%emt 0:00:02]} Nc6 {[%emt 0:00:02]} 3. e3 {[%emt 0:00:03]} Nge7 {[%emt 0:01:43]} 4. c4 {[%emt 0:01:19]} d5 {[%emt 0:04:18]} 5. cxd5 {[%emt 0:00:02]} Nxd5 {[%emt 0:00:03]} 6. a3 {[%emt 0:00:04]} Bd6 {[%emt 0:00:34]} 7. Qc2 {[%emt 0:00:44]} Qf6 {[%emt 0:03:39] A01: Nimzowitsch-Larsen Opening.} ({RR} 7... Bd7 8. Nf3 Qe7 9. d3 g5 10. b4 a6 11. Nc3 Nxc3 12. Bxc3 g4 13. Nd2 O-O-O 14. Rb1 h5 15. Ne4 f5 16. Nxd6+ Qxd6 17. Be2 h4 18. O-O Rhf8 19. a4 f4 20. b5 f3 21. bxc6 Bxc6 22. Bb4 {Duda,J (2731)-Matlakov,M (2674) chess.com INT 2023 1-0 (46)}) 8. Nf3 {[%emt 0:00:31]} Qg6 {[%emt 0:01:36]} 9. d3 {[%emt 0:00:18]} Be6 $146 {[%emt 0:02:34] The position is equal.} ({RR} 9... O-O 10. Nbd2 Be6 11. Nc4 Rfe8 12. b4 f6 13. h3 Bf8 14. g4 Rad8 15. Be2 Ndxb4 16. axb4 Nxb4 17. Qa4 Nxd3+ 18. Bxd3 Qxd3 19. Ncd2 Bd5 20. e4 Bc6 21. Qb3+ Qxb3 22. Nxb3 Rd3 23. Nfd2 Bb4 24. Ke2 {Titichoca Daza,D (2205)-Rego,P (2273) Chess.com INT 2022 0-1}) ({RR} 9... a5 10. Nbd2 O-O 11. h4 Bg4 12. Be2 h5 13. Ne4 Rad8 14. Rc1 Nf6 15. Nxf6+ Qxf6 16. Ng5 Bxe2 17. Qxe2 Qg6 18. Rd1 Rfe8 19. Qf3 Be7 20. Ke2 f5 21. Kf1 Rd6 22. Qe2 Red8 23. g3 Bf6 24. Kg2 {Tomic,A (2314)-Saric,I (2673) Vrnjacka Banja SRB 2024 0-1 (42)}) ({RR} 9... O-O 10. Nbd2 Be6 11. Nc4 Rfe8 12. b4 f6 13. h3 Bf8 14. g4 Rad8 15. Be2 Ndxb4 16. axb4 Nxb4 17. Qa4 Nxd3+ 18. Bxd3 Qxd3 19. Ncd2 Bd5 20. e4 Bc6 21. Qb3+ Qxb3 22. Nxb3 Rd3 23. Nfd2 Bb4 24. Ke2 {Titichoca Daza,D (2205)-Rego,P (2273) Chess.com INT 2022 0-1}) 10. Nbd2 {[%emt 0:00:13]} f6 $146 {[%emt 0:00:16]} (10... O-O 11. g3 a5 12. Bg2 a4 13. O-O axb3 14. Nxb3 f6 15. e4 Nb6 16. d4 Na4 {½-½ Spartinos,P (2353)-Lushnikov,A (2310) WS MN/149 email 2016}) 11. Rc1 {[%emt 0:02:28]} Rd8 {[%emt 0:07:12]} 12. Be2 {[%emt 0:02:17]} O-O {[%emt 0:01:57]} 13. O-O {[%emt 0:00:05]} Kh8 {[%emt 0:00:58]} 14. Kh1 {[%emt 0:01:21]} Qh6 {[%emt 0:01:30]} 15. b4 {[%emt 0:01:04]} a6 {[%emt 0:00:20]} 16. Rg1 {[%emt 0:06:03]} (16. Nc4 $11 {might be stronger.}) 16... Nde7 {[%emt 0:00:32]} (16... f5 $1 $15) 17. g4 {[%emt 0:00:43]} Bd5 {[%emt 0:00:12]} 18. Ne4 {[%emt 0:00:13]} Qg6 {[%emt 0:00:02]} 19. Rg3 {[%emt 0:00:17]} Qf7 {[%emt 0:00:15]} 20. Rcg1 {[%emt 0:00:34]} Qe6 {[%emt 0:00:12]} 21. Qb1 {[%emt 0:00:51]} Qd7 {[%emt 0:00:17]} 22. Rh3 {[%emt 0:01:49]} Ng6 {[%emt 0:00:10]} 23. Rgg3 {[%emt 0:02:04]} Bf7 {[%emt 0:00:11]} 24. Kg1 {[%emt 0:01:11]} Rde8 {[%emt 0:00:05]} (24... Kg8 $11) 25. d4 $14 {[%emt 0:01:13] White is more active.} Qe7 $2 {[%emt 0:00:13][%mdl 8192]} ({Black should play} 25... Kg8 $14) 26. Bd3 {[%emt 0:00:13]} Kg8 {[%emt 0:00:05]} 27. g5 $2 {[%emt 0:01:03]} ({White should play} 27. Rh5 $1 $18) 27... f5 {[%emt 0:00:11]} 28. Nxd6 {[%emt 0:00:05]} (28. Nf6+ $1 $14 gxf6 29. gxf6) 28... cxd6 $11 {[%emt 0:00:02]} 29. dxe5 {[%emt 0:00:12]} (29. Bxf5 $5 e4 $8 30. Nh4 $11) 29... dxe5 {[%emt 0:00:22] Strongly threatening ...e4.} 30. Bxf5 {[%emt 0:00:04][%cal Oh3h7] A strong pair of Bishops.} Be6 {[%emt 0:00:11]} (30... Rd8 $14) 31. Bxg6 $16 {[%emt 0:00:44]} hxg6 {[%emt 0:00:02]} 32. Qxg6 {[%emt 0:00:02] Qh7+ would kill now.} Bxh3 {[%emt 0:00:09]} 33. Rxh3 {[%emt 0:00:04]} Qe6 {[%emt 0:00:03] [#]} (33... Qd7 $16 {was necessary.} 34. Qh5 (34. Qh7+ Kf7 $16) 34... Re6) 34. Qh5 $1 $40 {[%emt 0:00:54][%mdl 128] and g6 would now be decisive Black is in trouble.} Qf5 {[%emt 0:00:20] [#]} (34... Rf5 35. Bc1 Re7 36. Qh7+ Kf8) 35. e4 $1 {[%emt 0:00:45][%mdl 512] White is clearly winning.} Qf4 {[%emt 0:00:08]} 36. Kg2 {[%emt 0:00:49]} Re6 {[%emt 0:00:08]} 37. Qh7+ {[%emt 0:00:14]} Kf7 {[%emt 0:00:01]} 38. Rh4 {[%emt 0:00:01] Weighted Error Value: White=0.16 (very precise) /Black=0.55 Loses game: 	--- 	Black=1 Missed win: 	White=1 	--- Mistake: 	White=2 	Black=5 Inaccurate: 	White=1 	Black=3 OK: 	White=6 	Black=7 Best: 	White=1 	Black=3 Strong: 	White=1 	--- Brilliant: 	White=1 	---} 1-0

[Event "GCT Superbet Rapid Poland 2025"]
[Site "Warsaw"]
[Date "2025.04.28"]
[Round "9.1"]
[White "Praggnanandhaa R"]
[Black "Duda, Jan-Krzysztof"]
[Result "1-0"]
[ECO "A47"]
[WhiteElo "2758"]
[BlackElo "2739"]
[Annotator "TA"]
[PlyCount "131"]
[EventDate "2025.??.??"]
[EventType "rapid"]
[TimeControl "1500+10"]

{[%evp 9,131,19,72,61,56,48,70,20,9,26,16,24,22,22,14,23,24,9,10,6,1,0,0,8,3,11,0,0,15,0,0,0,0,-33,-27,-33,-22,-15,-24,-37,-35,-35,-33,-48,-52,-39,-24,-20,-20,-13,0,-20,-16,-49,-31,-53,0,0,0,0,17,16,59,63,110,26,48,40,29,32,123,0,0,0,20,35,92,0,146,0,275,262,291,272,295,304,277,291,380,377,439,418,433,352,503,500,522,521,663,647,683,579,690,645,786,787,787,775,785,697,1310,1285,1157,999,989,964,864,807,1166,1146,1250,1250,1751,1727]} 1. d4 {[%emt 0:00:09]} Nf6 {[%emt 0:00:02]} 2. Nf3 {[%emt 0:00:03]} e6 {[%emt 0:00:12]} 3. Bf4 {[%emt 0:01:50]} c5 {[%emt 0:00:03]} 4. e3 {[%emt 0:00:01]} b6 {[%emt 0:00:04]} 5. Nc3 {[%emt 0:00:21]} cxd4 {[%emt 0:00:52]} (5... a6 $11) 6. Nb5 $1 $16 {[%emt 0:02:03] A47: 1 d4 Nf6 2 Nf3 b6: Torre, London and Colle Systems.} Nd5 {[%emt 0:00:10] Dodges Nc7+} 7. Qxd4 {[%emt 0:05:13]} (7. Nbxd4 Nxf4 8. exf4 Qc7 $15) 7... Nc6 {[%emt 0:00:40]} 8. Nd6+ {[%emt 0:01:11]} (8. Qa4 $14) 8... Bxd6 $11 {[%emt 0:00:04]} 9. Qxg7 {[%emt 0:00:02]} Bb4+ {[%emt 0:00:10]} 10. c3 {[%emt 0:00:02]} Bxc3+ {[%emt 0:00:08]} 11. bxc3 {[%emt 0:00:01]} Qf6 {[%emt 0:00:02]} 12. Qxf6 {[%emt 0:00:06] A sharp opening} Nxf6 {[%emt 0:00:02]} 13. Nd2 $146 {[%emt 0:01:39]} (13. Rc1 Ne4 14. Nd2 Nxd2 15. Kxd2 Ke7 16. e4 d6 17. Bb5 Bb7 18. Bxc6 {½-½ Praneeth,S (2413)-Sidhant,M (2259) IND-ch Challengers 54th 2016 (5)}) ({RR} 13. Rc1 Ne4 14. Nd2 Nxd2 15. Kxd2 Ke7 16. e4 d6 17. Bb5 Bb7 18. Bxc6 {½-½ (18) Praneeth,S (2413)-Sidhant,M (2259) Noida 2016}) ({RR} 13. Bb5 Nd5 14. Bd6 Rg8 15. Rc1 Bb7 16. O-O f5 17. Rfd1 Nf6 18. Nd2 Na5 19. f3 Bc6 20. Be2 Ba4 21. Re1 Kf7 22. Ba6 Bc6 23. Kf2 Rg6 24. c4 Rag8 25. Rg1 Nb7 26. Bxb7 Bxb7 27. c5 b5 {Echeverria,N (2043)-Gongora Reyes,M (2436) Mislata 2008 0-1 (49)}) ({RR} 13. c4 Ne4 14. Nd2 Nxd2 15. Kxd2 e5 16. Bg3 Ba6 17. Rc1 d6 18. Bd3 Rc8 19. f4 f6 20. Bh4 O-O 21. Bf5 Rc7 22. Rhf1 Na5 23. Be6+ Kg7 24. Kd3 b5 25. cxb5 Bxb5+ 26. Ke4 Re7 27. f5 Bxf1 {Svensson,M (2151)-Ornstein,A (2287) Stockholm 2019 ½-½}) 13... Nd5 {[%emt 0:01:37][%cal Od5f4]} 14. Bg3 {[%emt 0:00:23]} Nxc3 {[%emt 0:00:52]} 15. a3 {[%emt 0:00:20] Repels Nb4} O-O {[%emt 0:07:50]} 16. Rc1 {[%emt 0:00:46]} Nd5 {[%emt 0:00:09]} 17. Bd6 {[%emt 0:00:49]} Re8 {[%emt 0:01:59]} 18. e4 {[%emt 0:01:49]} Nde7 {[%emt 0:00:02]} 19. h4 {[%emt 0:00:19][%mdl 1024] White has compensation.} Bb7 {[%emt 0:00:58]} 20. Rh3 {[%emt 0:00:04]} f6 {[%emt 0:00:22]} 21. Kd1 {[%emt 0:03:47]} Rac8 {[%emt 0:03:29]} 22. Rhc3 {[%emt 0:01:10]} Kf7 {[%emt 0:00:47]} 23. Bb5 {[%emt 0:01:33]} a6 {[%emt 0:02:07]} 24. Bd3 {[%emt 0:02:40]} Nd4 {[%emt 0:00:31]} 25. Bc7 {[%emt 0:00:36]} b5 {[%emt 0:00:36]} 26. Bb6 {[%emt 0:00:12]} Rxc3 {[%emt 0:00:40]} 27. Rxc3 {[%emt 0:00:01]} Nec6 {[%emt 0:00:02]} 28. Bb1 {[%emt 0:00:12]} e5 {[%emt 0:02:34]} 29. Ba2+ {[%emt 0:00:08]} Ke7 {[%emt 0:00:42]} 30. Bd5 {[%emt 0:01:25]} Ne6 {[%emt 0:00:23]} 31. Rg3 {[%emt 0:00:03]} Ba8 {[%emt 0:00:31]} 32. Nf1 {[%emt 0:00:59]} Rb8 {[%emt 0:00:51]} (32... Ncd4 33. Ne3 $11) (32... Kf7 $15) 33. Ne3 $1 {[%emt 0:00:24]} Rxb6 {[%emt 0:00:21]} 34. Rg8 {[%emt 0:00:01]} Kd6 {[%emt 0:00:44]} 35. Rxa8 {[%emt 0:00:11]} Ne7 {[%emt 0:00:12]} 36. Rh8 $1 {[%emt 0:00:22]} h5 {[%emt 0:00:09]} 37. g3 {[%emt 0:00:11] White is more active.} ({White should play} 37. g4 $1 $16 {[%cal Rg4h5]} Nf4 38. gxh5 Nfxd5 39. exd5) 37... a5 {[%emt 0:00:11]} 38. Rxh5 {[%emt 0:00:03]} Nxd5 {[%emt 0:00:08]} 39. Nxd5 $14 {[%emt 0:00:04][%mdl 4096] Endgame KRN-KRN} Rb8 {[%emt 0:00:02]} (39... Rc6 $1 $14) 40. Nxf6 {[%emt 0:00:25]} (40. Rf5 $1 $16) 40... b4 $11 {[%emt 0:00:16]} 41. axb4 {[%emt 0:00:00]} Rxb4 {[%emt 0:00:02]} 42. Rh8 {[%emt 0:00:09]} Rb1+ {[%emt 0:00:20]} (42... Nd4 $1 $14) 43. Ke2 {[%emt 0:00:14]} (43. Kd2 $16) 43... a4 {[%emt 0:00:10] [#] White stays focused until the end.} (43... Nd4+ $1 $11 44. Kd3 Rb3+ 45. Kc4 Rb4+ 46. Kc3 Rb3+ 47. Kc4) 44. Ra8 {[%emt 0:00:04]} ({Only move:} 44. Kf3 $1 $16) 44... Ra1 $2 {[%emt 0:00:11][%mdl 8192] [#]} (44... Nd4+ $11 45. Kd3 Rd1+ 46. Kc3 Rc1+ 47. Kb4 Rb1+ 48. Kc3 (48. Kxa4 $2 {loses.} Ra1+ 49. Kb4 Rxa8 $19) 48... Rc1+) 45. Kf3 $1 $18 {[%emt 0:00:17]} a3 {[%emt 0:00:08][%cal Ba4a3,Ba3a2][%mdl 32]} 46. h5 {[%emt 0:00:02]} Ke7 {[%emt 0:00:12]} 47. Nd5+ {[%emt 0:00:15]} Kf7 {[%emt 0:00:01]} 48. Kg4 {[%emt 0:00:09] Prevents Ng5.} Nc5 {[%emt 0:00:17]} 49. f3 {[%emt 0:00:07]} a2 {[%emt 0:00:14]} 50. Ra7 {[%emt 0:00:12]} Kg7 {[%emt 0:00:09]} 51. Ne3 {[%emt 0:00:04]} Kf6 {[%emt 0:00:08]} (51... Kh6 $142 52. Ra3 Ne6) 52. Nc2 {[%emt 0:00:18] White is clearly winning.} Rh1 {[%emt 0:00:13]} 53. Rxa2 {[%emt 0:00:02]} Ke6 {[%emt 0:00:10]} 54. Ne3 {[%emt 0:00:06]} Kf6 {[%emt 0:00:06]} 55. Rb2 {[%emt 0:00:13]} Nd3 {[%emt 0:00:13]} 56. Rd2 {[%emt 0:00:15]} Nc5 {[%emt 0:00:02]} 57. Rd5 {[%emt 0:00:09]} Rc1 {[%emt 0:00:11]} 58. Rd6+ {[%emt 0:00:02]} Kf7 {[%emt 0:00:06]} 59. h6 {[%emt 0:00:16]} Re1 {[%emt 0:00:20]} 60. Nf5 {[%emt 0:00:05] h7 would kill now.} Rh1 {[%emt 0:00:07]} 61. Nh4 {[%emt 0:00:02] Black must now prevent h7.} Ra1 {[%emt 0:00:11]} 62. Ng6 {[%emt 0:00:26]} Rh1 {[%emt 0:00:11]} 63. Nxe5+ {[%emt 0:00:02]} Ke7 {[%emt 0:00:01]} 64. Rd5 {[%emt 0:00:19]} Ne6 {[%emt 0:00:21]} 65. Rxd7+ {[%emt 0:00:01]} Kf6 {[%emt 0:00:04]} 66. f4 {[%emt 0:00:06] Weighted Error Value: White=0.17 (very precise) /Black=0.34 Loses game: 	--- 	Black=1 Mistake: 	White=5 	Black=6 Inaccurate: 	White=2 	Black=2 OK: 	White=21 	Black=21 Best: 	White=4 	Black=2 Strong: 	White=3 	---} 1-0